[Event "*** Titled Tuesday Blitz"]
[Site "Chess.com"]
[Date "2020.11.10"]
[Round "7"]
[White "NotFischer"]
[Black "guillembaches"]
[Result "1/2-1/2"]
[WhiteElo "2260"]
[BlackElo "2380"]
[TimeControl "180+1"]
[EndTime "11:23:46 PST"]
[Termination "Game drawn - insufficient material"]

1. d4 {[%clk 0:02:59.8]} 1... d5 {[%clk 0:03:00]} 2. Bf4 {[%clk 0:02:59.3]} 2...
c5 {[%clk 0:02:57.8]} 3. c3 {[%clk 0:02:59]} 3... Nc6 {[%clk 0:02:51.8]} 4. e3
{[%clk 0:02:58.9]} 4... Qb6 {[%clk 0:02:50.8]} 5. Qb3 {[%clk 0:02:57.5]} 5... c4
{[%clk 0:02:50.2]} 6. Qc2 {[%clk 0:02:57]} 6... e5 {[%clk 0:02:49.7]} 7. dxe5
{[%clk 0:02:55.6]} 7... Bf5 {[%clk 0:02:49.2]} 8. Qc1 {[%clk 0:02:50.7]} 8... g5
{[%clk 0:02:48.4]} 9. Bg3 {[%clk 0:02:48.2]} 9... Bg7 {[%clk 0:02:40.4]} 10. Nf3
{[%clk 0:02:47.5]} 10... g4 {[%clk 0:02:15.4]} 11. Nd4 {[%clk 0:02:45.2]} 11...
Bg6 {[%clk 0:02:13.4]} 12. e6 {[%clk 0:02:37.7]} 12... Nxd4 {[%clk 0:01:59.8]}
13. exf7+ {[%clk 0:02:37.2]} 13... Bxf7 {[%clk 0:01:59.8]} 14. exd4 {[%clk
0:02:36]} 14... Nf6 {[%clk 0:01:43.5]} 15. Be2 {[%clk 0:02:25]} 15... Qe6 {[%clk
0:01:42.7]} 16. O-O {[%clk 0:02:22.6]} 16... O-O {[%clk 0:01:37.3]} 17. Re1
{[%clk 0:02:21.9]} 17... Rae8 {[%clk 0:01:28.9]} 18. Nd2 {[%clk 0:02:19.9]}
18... Bh6 {[%clk 0:01:25]} 19. Qd1 {[%clk 0:02:13.6]} 19... Qf5 {[%clk
0:01:20.7]} 20. Be5 {[%clk 0:02:02.6]} 20... Bh5 {[%clk 0:01:08]} 21. Rf1 {[%clk
0:01:17.9]} 21... b5 {[%clk 0:01:02.9]} 22. a4 {[%clk 0:01:08.7]} 22... a6
{[%clk 0:01:02.4]} 23. axb5 {[%clk 0:01:08.3]} 23... axb5 {[%clk 0:01:03.3]} 24.
Ra6 {[%clk 0:01:05.8]} 24... Bg5 {[%clk 0:00:52.2]} 25. Bxf6 {[%clk 0:00:59.4]}
25... Bxf6 {[%clk 0:00:45.2]} 26. h3 {[%clk 0:00:59]} 26... Rxe2 {[%clk
0:00:19.5]} 27. Qxe2 {[%clk 0:00:55.1]} 27... Re8 {[%clk 0:00:19.5]} 28. hxg4
{[%clk 0:00:32.7]} 28... Rxe2 {[%clk 0:00:15.6]} 29. gxf5 {[%clk 0:00:32.5]}
29... Rxd2 {[%clk 0:00:16]} 30. Rxf6 {[%clk 0:00:31.8]} 30... Rxb2 {[%clk
0:00:15]} 31. Rc1 {[%clk 0:00:25.1]} 31... b4 {[%clk 0:00:11.9]} 32. cxb4 {[%clk
0:00:23.9]} 32... Rxb4 {[%clk 0:00:12.8]} 33. Rd6 {[%clk 0:00:23.9]} 33... Bf7
{[%clk 0:00:12.6]} 34. f6 {[%clk 0:00:23.1]} 34... h5 {[%clk 0:00:12.2]} 35.
Rd8+ {[%clk 0:00:22.5]} 35... Kh7 {[%clk 0:00:12]} 36. Re1 {[%clk 0:00:19.8]}
36... Kg6 {[%clk 0:00:11.9]} 37. Rd6 {[%clk 0:00:19]} 37... Rb3 {[%clk
0:00:10.5]} 38. Rc6 {[%clk 0:00:17.6]} 38... Rd3 {[%clk 0:00:10.5]} 39. Re7
{[%clk 0:00:11.9]} 39... Rxd4 {[%clk 0:00:09.7]} 40. Rcc7 {[%clk 0:00:12.2]}
40... c3 {[%clk 0:00:07.6]} 41. Rxf7 {[%clk 0:00:10.6]} 41... c2 {[%clk
0:00:07.8]} 42. Rg7+ {[%clk 0:00:08.4]} 42... Kxf6 {[%clk 0:00:07.9]} 43. Rgf7+
{[%clk 0:00:07.3]} 43... Kg6 {[%clk 0:00:08.2]} 44. Kh2 {[%clk 0:00:06.8]} 44...
c1=Q {[%clk 0:00:06.7]} 45. Rxc1 {[%clk 0:00:05.8]} 45... Kxf7 {[%clk
0:00:07.2]} 46. Kg3 {[%clk 0:00:05.8]} 46... Kg6 {[%clk 0:00:07.5]} 47. Re1
{[%clk 0:00:05.9]} 47... h4+ {[%clk 0:00:07.5]} 48. Kh3 {[%clk 0:00:06.1]} 48...
Kf5 {[%clk 0:00:07.6]} 49. g3 {[%clk 0:00:04.9]} 49... hxg3 {[%clk 0:00:07.2]}
50. fxg3 {[%clk 0:00:05.8]} 50... Rd3 {[%clk 0:00:06.8]} 51. Kg2 {[%clk
0:00:05.8]} 51... d4 {[%clk 0:00:06.8]} 52. Re8 {[%clk 0:00:05]} 52... Rd1
{[%clk 0:00:06.2]} 53. Kf3 {[%clk 0:00:04.5]} 53... Rf1+ {[%clk 0:00:05.2]} 54.
Kg2 {[%clk 0:00:04.9]} 54... Rd1 {[%clk 0:00:05.1]} 55. Kf3 {[%clk 0:00:05.5]}
55... Rd3+ {[%clk 0:00:05.2]} 56. Kf2 {[%clk 0:00:05.7]} 56... Ra3 {[%clk
0:00:05.1]} 57. Rd8 {[%clk 0:00:04]} 57... Ke4 {[%clk 0:00:04.8]} 58. g4 {[%clk
0:00:03.9]} 58... Ra2+ {[%clk 0:00:03]} 59. Ke1 {[%clk 0:00:04.4]} 59... Ra5
{[%clk 0:00:03.1]} 60. Re8+ {[%clk 0:00:04]} 60... Kd3 {[%clk 0:00:03.3]} 61.
Kf2 {[%clk 0:00:02]} 61... Rg5 {[%clk 0:00:03.3]} 62. Kf3 {[%clk 0:00:02]} 62...
Kd2 {[%clk 0:00:03.4]} 63. Kf4 {[%clk 0:00:02.5]} 63... Rg7 {[%clk 0:00:02.8]}
64. g5 {[%clk 0:00:03.1]} 64... d3 {[%clk 0:00:03.2]} 65. Kf5 {[%clk 0:00:03.4]}
65... Kc2 {[%clk 0:00:03.3]} 66. g6 {[%clk 0:00:03.9]} 66... d2 {[%clk
0:00:03.2]} 67. Rd8 {[%clk 0:00:04.2]} 67... d1=Q {[%clk 0:00:03.1]} 68. Rxd1
{[%clk 0:00:03.7]} 68... Kxd1 {[%clk 0:00:04]} 69. Kf6 {[%clk 0:00:04.2]} 69...
Rxg6+ {[%clk 0:00:04.6]} 70. Kxg6 {[%clk 0:00:04.6]} 1/2-1/2

[Event "*** Titled Tuesday Blitz"]
[Site "Chess.com"]
[Date "2020.11.10"]
[Round "7"]
[White "smartinusa"]
[Black "PlotnikovPavel"]
[Result "1-0"]
[WhiteElo "2625"]
[BlackElo "2456"]
[TimeControl "180+1"]
[EndTime "11:23:50 PST"]
[Termination "smartinusa won by checkmate"]

1. d4 {[%clk 0:03:00.9]} 1... Nf6 {[%clk 0:02:57.9]} 2. c4 {[%clk 0:03:01.8]}
2... g6 {[%clk 0:02:57.3]} 3. Nf3 {[%clk 0:03:02.7]} 3... Bh6 {[%clk 0:02:57.7]}
4. Bxh6 {[%clk 0:03:01.1]} 4... c5 {[%clk 0:02:52.6]} 5. Bg7 {[%clk 0:02:56]}
5... Rg8 {[%clk 0:02:51.6]} 6. Bxf6 {[%clk 0:02:56]} 6... exf6 {[%clk
0:02:52.5]} 7. dxc5 {[%clk 0:02:55.5]} 7... Qa5+ {[%clk 0:02:52.8]} 8. Qd2
{[%clk 0:02:54.9]} 8... Qxc5 {[%clk 0:02:53.7]} 9. Qe3+ {[%clk 0:02:55.1]} 9...
Qxe3 {[%clk 0:02:53.7]} 10. fxe3 {[%clk 0:02:56]} 10... Nc6 {[%clk 0:02:54.5]}
11. Nc3 {[%clk 0:02:55.5]} 11... Ke7 {[%clk 0:02:55.4]} 12. Nd5+ {[%clk
0:02:54.6]} 12... Kd6 {[%clk 0:02:53.8]} 13. Nxf6 {[%clk 0:02:54.1]} 13... Rd8
{[%clk 0:02:53.6]} 14. O-O-O+ {[%clk 0:02:53.2]} 14... Kc5 {[%clk 0:02:53.6]}
15. Nd5 {[%clk 0:02:38.8]} 15... Kxc4 {[%clk 0:02:49.2]} 16. e4 {[%clk
0:02:35.9]} 16... b6 {[%clk 0:02:38]} 17. e3+ {[%clk 0:02:35.5]} 17... Kc5
{[%clk 0:02:37.9]} 18. Kb1 {[%clk 0:02:32.5]} 18... Bb7 {[%clk 0:02:36.7]} 19.
Nc7 {[%clk 0:02:18.2]} 19... Nb4 {[%clk 0:02:27]} 20. Nd2 {[%clk 0:01:38]} 20...
Rac8 {[%clk 0:02:14.8]} 21. Nb3+ {[%clk 0:01:37.7]} 21... Kc6 {[%clk 0:02:06.4]}
22. Nd5 {[%clk 0:01:34.8]} 22... Nxd5 {[%clk 0:02:00.6]} 23. exd5+ {[%clk
0:01:34.2]} 23... Kc7 {[%clk 0:02:01.5]} 24. Be2 {[%clk 0:01:30.6]} 24... Kd6
{[%clk 0:01:59.7]} 25. Bf3 {[%clk 0:01:30.1]} 25... f5 {[%clk 0:02:00.1]} 26. h4
{[%clk 0:01:28.9]} 26... Re8 {[%clk 0:01:59.6]} 27. Rhe1 {[%clk 0:01:25.8]}
27... Re5 {[%clk 0:01:52.4]} 28. Rc1 {[%clk 0:01:24.9]} 28... Rce8 {[%clk
0:01:48.8]} 29. Rc3 {[%clk 0:01:24.6]} 29... f4 {[%clk 0:01:28]} 30. e4 {[%clk
0:01:20]} 30... Rxd5 {[%clk 0:01:26.3]} 31. Kc1 {[%clk 0:01:12.9]} 31... Rde5
{[%clk 0:01:11.9]} 32. Rd1+ {[%clk 0:01:13.1]} 32... Ke7 {[%clk 0:01:09.8]} 33.
Rc7 {[%clk 0:01:06.6]} 33... Bc6 {[%clk 0:01:01.4]} 34. Rxa7 {[%clk 0:01:00.9]}
34... Rc8 {[%clk 0:00:58.9]} 35. Kb1 {[%clk 0:00:55.6]} 35... Rd8 {[%clk
0:00:38.3]} 36. Nd4 {[%clk 0:00:52.6]} 36... Ba8 {[%clk 0:00:33.6]} 37. Ra6
{[%clk 0:00:43.3]} 37... Rb8 {[%clk 0:00:27.8]} 38. a4 {[%clk 0:00:38.8]} 38...
Ke8 {[%clk 0:00:15.5]} 39. Ra7 {[%clk 0:00:37.5]} 39... Bxe4+ {[%clk 0:00:14.4]}
40. Bxe4 {[%clk 0:00:36.8]} 40... Rxe4 {[%clk 0:00:15.3]} 41. Nb5 {[%clk
0:00:37]} 41... Re7 {[%clk 0:00:14.4]} 42. Nc7+ {[%clk 0:00:37]} 42... Kd8
{[%clk 0:00:14.4]} 43. Nd5 {[%clk 0:00:36.8]} 43... Re4 {[%clk 0:00:13.9]} 44.
Rxd7+ {[%clk 0:00:34.5]} 44... Kxd7 {[%clk 0:00:13.3]} 45. Nf6+ {[%clk
0:00:34.5]} 45... Ke6 {[%clk 0:00:14.2]} 46. Nxe4 {[%clk 0:00:35.4]} 46... Ra8
{[%clk 0:00:14.5]} 47. Nc3 {[%clk 0:00:35]} 47... Kf5 {[%clk 0:00:14.2]} 48. Rd6
{[%clk 0:00:33.6]} 48... Rb8 {[%clk 0:00:12.3]} 49. Nd5 {[%clk 0:00:30.1]} 49...
b5 {[%clk 0:00:12.2]} 50. a5 {[%clk 0:00:29.7]} 50... Kg4 {[%clk 0:00:11.7]} 51.
a6 {[%clk 0:00:29.8]} 51... Kxh4 {[%clk 0:00:11.2]} 52. a7 {[%clk 0:00:29.7]}
52... Re8 {[%clk 0:00:10.3]} 53. Nc7 {[%clk 0:00:28.5]} 53... Rc8 {[%clk
0:00:10.1]} 54. a8=Q {[%clk 0:00:27.7]} 54... Rxa8 {[%clk 0:00:11]} 55. Nxa8
{[%clk 0:00:27.8]} 55... Kg3 {[%clk 0:00:11.9]} 56. Rd2 {[%clk 0:00:27.5]} 56...
g5 {[%clk 0:00:10]} 57. Nc7 {[%clk 0:00:27.3]} 57... g4 {[%clk 0:00:10.9]} 58.
Nxb5 {[%clk 0:00:27.2]} 58... f3 {[%clk 0:00:11.8]} 59. gxf3 {[%clk 0:00:26.2]}
59... gxf3 {[%clk 0:00:12.7]} 60. Nc3 {[%clk 0:00:24.2]} 60... f2 {[%clk
0:00:13.6]} 61. Ne4+ {[%clk 0:00:24.2]} 61... Kf3 {[%clk 0:00:13.7]} 62. Nxf2
{[%clk 0:00:24.2]} 62... Ke3 {[%clk 0:00:14.6]} 63. Rc2 {[%clk 0:00:24.4]} 63...
h5 {[%clk 0:00:15.5]} 64. b4 {[%clk 0:00:24.4]} 64... h4 {[%clk 0:00:16.4]} 65.
b5 {[%clk 0:00:24.6]} 65... h3 {[%clk 0:00:17.3]} 66. b6 {[%clk 0:00:24.5]}
66... h2 {[%clk 0:00:18.2]} 67. b7 {[%clk 0:00:23.6]} 67... h1=Q+ {[%clk
0:00:19.1]} 68. Nxh1 {[%clk 0:00:23.1]} 68... Kd4 {[%clk 0:00:19.9]} 69. b8=Q
{[%clk 0:00:21.6]} 69... Ke4 {[%clk 0:00:19.8]} 70. Qe8+ {[%clk 0:00:21.3]}
70... Kd4 {[%clk 0:00:20.7]} 71. Rd2+ {[%clk 0:00:20.6]} 71... Kc3 {[%clk
0:00:20.5]} 72. Qe3+ {[%clk 0:00:20.2]} 72... Kc4 {[%clk 0:00:20.4]} 73. Rd4+
{[%clk 0:00:21.1]} 73... Kb5 {[%clk 0:00:21.1]} 74. Qe5+ {[%clk 0:00:22]} 74...
Kb6 {[%clk 0:00:20.5]} 75. Rd6+ {[%clk 0:00:22.9]} 75... Kb7 {[%clk 0:00:20.6]}
76. Qe7+ {[%clk 0:00:23.8]} 76... Kb8 {[%clk 0:00:21.5]} 77. Rd8# {[%clk
0:00:24.7]} 1-0

[Event "*** Titled Tuesday Blitz"]
[Site "Chess.com"]
[Date "2020.11.10"]
[Round "7"]
[White "Vuk2000"]
[Black "kuli4ik"]
[Result "1/2-1/2"]
[WhiteElo "2693"]
[BlackElo "2862"]
[TimeControl "180+1"]
[EndTime "11:23:58 PST"]
[Termination "Game drawn by repetition"]

1. d4 {[%clk 0:03:00.9]} 1... g6 {[%clk 0:02:59.5]} 2. Nf3 {[%clk 0:02:57.6]}
2... Bg7 {[%clk 0:02:59.4]} 3. Bg5 {[%clk 0:02:57.4]} 3... c5 {[%clk 0:02:57.7]}
4. c3 {[%clk 0:02:54.8]} 4... Qb6 {[%clk 0:02:56.5]} 5. Qb3 {[%clk 0:02:44.8]}
5... Nc6 {[%clk 0:02:55.8]} 6. e3 {[%clk 0:02:42.5]} 6... d5 {[%clk 0:02:46.1]}
7. Bb5 {[%clk 0:02:26.2]} 7... c4 {[%clk 0:02:39.1]} 8. Qa4 {[%clk 0:02:25.7]}
8... Bd7 {[%clk 0:02:33.6]} 9. Nbd2 {[%clk 0:02:24.6]} 9... Nf6 {[%clk
0:02:26.6]} 10. Bxf6 {[%clk 0:02:10.6]} 10... exf6 {[%clk 0:02:23.5]} 11. e4
{[%clk 0:02:07.4]} 11... a6 {[%clk 0:02:20.4]} 12. exd5 {[%clk 0:02:00.2]} 12...
Qxb5 {[%clk 0:02:19]} 13. Qxb5 {[%clk 0:01:36.9]} 13... axb5 {[%clk 0:02:19.9]}
14. dxc6 {[%clk 0:01:34.1]} 14... Bxc6 {[%clk 0:02:19.9]} 15. Nf1 {[%clk
0:01:10.2]} 15... Kd7 {[%clk 0:02:13.8]} 16. Ne3 {[%clk 0:01:09.5]} 16... Kd6
{[%clk 0:02:12.6]} 17. Nd2 {[%clk 0:00:58.6]} 17... Rhe8 {[%clk 0:02:09.5]} 18.
O-O {[%clk 0:00:57.1]} 18... f5 {[%clk 0:02:06.7]} 19. g3 {[%clk 0:00:52.3]}
19... h5 {[%clk 0:02:03.9]} 20. Rfd1 {[%clk 0:00:24.4]} 20... h4 {[%clk
0:02:01.5]} 21. d5 {[%clk 0:00:24.3]} 21... Bd7 {[%clk 0:01:59.3]} 22. Nf3
{[%clk 0:00:24]} 22... hxg3 {[%clk 0:01:57.4]} 23. hxg3 {[%clk 0:00:24.9]} 23...
Re4 {[%clk 0:01:52.6]} 24. Ng5 {[%clk 0:00:14.4]} 24... Re7 {[%clk 0:01:51.6]}
25. Nf3 {[%clk 0:00:07.5]} 25... Bh6 {[%clk 0:01:44]} 26. Nc2 {[%clk 0:00:06.6]}
26... f4 {[%clk 0:01:42]} 27. Kg2 {[%clk 0:00:06.2]} 27... fxg3 {[%clk
0:01:41.1]} 28. Kxg3 {[%clk 0:00:05.8]} 28... Bg7 {[%clk 0:01:31.5]} 29. Ne3
{[%clk 0:00:04.8]} 29... Re4 {[%clk 0:01:20.4]} 30. Nd2 {[%clk 0:00:03.2]} 30...
Be5+ {[%clk 0:01:16.7]} 31. Kf3 {[%clk 0:00:03.1]} 31... Rf4+ {[%clk 0:01:16.2]}
32. Ke2 {[%clk 0:00:03.8]} 32... Re8 {[%clk 0:01:07.5]} 33. a4 {[%clk
0:00:04.1]} 33... bxa4 {[%clk 0:00:58.8]} 34. Ndxc4+ {[%clk 0:00:03.8]} 34...
Kc5 {[%clk 0:00:59]} 35. Nxe5 {[%clk 0:00:03]} 35... Rxe5 {[%clk 0:00:59.9]} 36.
Rd2 {[%clk 0:00:03.3]} 36... b5 {[%clk 0:00:54]} 37. Kd3 {[%clk 0:00:03]} 37...
Bf5+ {[%clk 0:00:48.1]} 38. Ke2 {[%clk 0:00:02.9]} 38... Bg4+ {[%clk 0:00:43.8]}
39. Kd3 {[%clk 0:00:02.5]} 39... Bf3 {[%clk 0:00:35.2]} 40. c4 {[%clk 0:00:03]}
40... bxc4+ {[%clk 0:00:33.6]} 41. Kc3 {[%clk 0:00:02.9]} 41... Bxd5 {[%clk
0:00:33]} 42. Rxa4 {[%clk 0:00:03.2]} 42... Rxf2 {[%clk 0:00:19.4]} 43. Rxf2
{[%clk 0:00:02.2]} 43... Rxe3+ {[%clk 0:00:18.5]} 44. Kd2 {[%clk 0:00:03]} 44...
Rb3 {[%clk 0:00:15.3]} 45. Ra5+ {[%clk 0:00:02.7]} 45... Kd6 {[%clk 0:00:15.1]}
46. Kc1 {[%clk 0:00:03.3]} 46... Be6 {[%clk 0:00:14.8]} 47. Ra6+ {[%clk
0:00:03.6]} 47... Ke7 {[%clk 0:00:14.6]} 48. Re2 {[%clk 0:00:04.1]} 48... g5
{[%clk 0:00:14.2]} 49. Ra5 {[%clk 0:00:04]} 49... g4 {[%clk 0:00:13.5]} 50. Rg5
{[%clk 0:00:02.8]} 50... Kf6 {[%clk 0:00:13.7]} 51. Rg8 {[%clk 0:00:02.5]} 51...
c3 {[%clk 0:00:13.7]} 52. Rf2+ {[%clk 0:00:02.8]} 52... Ke7 {[%clk 0:00:12.3]}
53. bxc3 {[%clk 0:00:02.5]} 53... Rxc3+ {[%clk 0:00:12.6]} 54. Kd2 {[%clk
0:00:03.4]} 54... Rh3 {[%clk 0:00:13.1]} 55. Rf4 {[%clk 0:00:03.7]} 55... Kd6
{[%clk 0:00:13.1]} 56. Rgxg4 {[%clk 0:00:03.1]} 56... Bxg4 {[%clk 0:00:12.6]}
57. Rxg4 {[%clk 0:00:04]} 57... f5 {[%clk 0:00:12.5]} 58. Rb4 {[%clk 0:00:04.1]}
58... Ke5 {[%clk 0:00:12.1]} 59. Ke2 {[%clk 0:00:04.8]} 59... Rc3 {[%clk
0:00:12.1]} 60. Kf2 {[%clk 0:00:04.9]} 60... Kf6 {[%clk 0:00:12.5]} 61. Ke2
{[%clk 0:00:05]} 61... Kg5 {[%clk 0:00:13.4]} 62. Kf2 {[%clk 0:00:05.6]} 62...
Rd3 {[%clk 0:00:13]} 63. Ke2 {[%clk 0:00:06]} 63... Rd8 {[%clk 0:00:13.9]} 64.
Kf2 {[%clk 0:00:06.6]} 64... Re8 {[%clk 0:00:14.6]} 65. Kf3 {[%clk 0:00:06.8]}
65... Re6 {[%clk 0:00:14.4]} 66. Rb8 {[%clk 0:00:06.9]} 66... Rc6 {[%clk
0:00:13.8]} 67. Rg8+ {[%clk 0:00:07.5]} 67... Kf6 {[%clk 0:00:13.6]} 68. Rf8+
{[%clk 0:00:08.1]} 68... Ke6 {[%clk 0:00:13.8]} 69. Re8+ {[%clk 0:00:08.7]}
69... Kf7 {[%clk 0:00:13.9]} 70. Rb8 {[%clk 0:00:09.2]} 70... Kf6 {[%clk
0:00:13.7]} 71. Rf8+ {[%clk 0:00:08.8]} 71... Ke5 {[%clk 0:00:13.3]} 72. Re8+
{[%clk 0:00:09.1]} 72... Re6 {[%clk 0:00:13.5]} 73. Rxe6+ {[%clk 0:00:09.4]}
73... Kxe6 {[%clk 0:00:14.4]} 74. Kf4 {[%clk 0:00:10.2]} 74... Kf6 {[%clk
0:00:14.2]} 75. Kf3 {[%clk 0:00:10.7]} 75... Ke5 {[%clk 0:00:15.1]} 76. Ke3
{[%clk 0:00:11.1]} 76... f4+ {[%clk 0:00:16]} 77. Kf3 {[%clk 0:00:11.7]} 77...
Kf5 {[%clk 0:00:16.9]} 78. Kf2 {[%clk 0:00:12.3]} 78... Ke4 {[%clk 0:00:17.8]}
79. Ke2 {[%clk 0:00:12.7]} 79... f3+ {[%clk 0:00:18.7]} 80. Kf2 {[%clk
0:00:13.4]} 80... Kf4 {[%clk 0:00:19.6]} 81. Kf1 {[%clk 0:00:13.9]} 81... Kg4
{[%clk 0:00:20]} 82. Kf2 {[%clk 0:00:14.8]} 82... Kf4 {[%clk 0:00:19.9]} 83. Kf1
{[%clk 0:00:15.5]} 83... Kg3 {[%clk 0:00:20.8]} 84. Kg1 {[%clk 0:00:15.7]} 84...
Kg4 {[%clk 0:00:21.1]} 85. Kf2 {[%clk 0:00:16.6]} 85... Kf4 {[%clk 0:00:22]}
1/2-1/2

[Event "*** Titled Tuesday Blitz"]
[Site "Chess.com"]
[Date "2020.11.10"]
[Round "7"]
[White "Vsevolod_Ovchinnikov"]
[Black "Vanina1989"]
[Result "1/2-1/2"]
[WhiteElo "2532"]
[BlackElo "2632"]
[TimeControl "180+1"]
[EndTime "11:24:23 PST"]
[Termination "Game drawn by stalemate"]

1. d4 {[%clk 0:03:00.9]} 1... Nf6 {[%clk 0:02:59.2]} 2. c4 {[%clk 0:03:01.4]}
2... e6 {[%clk 0:02:59.6]} 3. g3 {[%clk 0:03:01.7]} 3... Bb4+ {[%clk 0:02:57.5]}
4. Bd2 {[%clk 0:03:01.7]} 4... Qe7 {[%clk 0:02:57.5]} 5. Bg2 {[%clk 0:03:01.1]}
5... O-O {[%clk 0:02:57.7]} 6. Nf3 {[%clk 0:02:55.8]} 6... d5 {[%clk 0:02:57.9]}
7. O-O {[%clk 0:02:55.1]} 7... Bxd2 {[%clk 0:02:58]} 8. Nbxd2 {[%clk 0:02:54.9]}
8... c6 {[%clk 0:02:52]} 9. Qc2 {[%clk 0:02:54.2]} 9... b6 {[%clk 0:02:46]} 10.
e4 {[%clk 0:02:53.5]} 10... dxc4 {[%clk 0:02:44.7]} 11. Nxc4 {[%clk 0:02:48.5]}
11... Ba6 {[%clk 0:02:44.4]} 12. Rfe1 {[%clk 0:02:47.8]} 12... Nbd7 {[%clk
0:02:34.3]} 13. Nce5 {[%clk 0:02:37.3]} 13... c5 {[%clk 0:02:24.8]} 14. Nxd7
{[%clk 0:01:42.8]} 14... Nxd7 {[%clk 0:02:23.7]} 15. Rad1 {[%clk 0:01:39.5]}
15... cxd4 {[%clk 0:02:10.6]} 16. Nxd4 {[%clk 0:01:38.4]} 16... Rac8 {[%clk
0:01:56.1]} 17. Qa4 {[%clk 0:01:00.6]} 17... Nc5 {[%clk 0:01:53.4]} 18. Qa3
{[%clk 0:01:01.1]} 18... Rfd8 {[%clk 0:01:40.1]} 19. Nb3 {[%clk 0:00:49.5]}
19... Bb5 {[%clk 0:01:20.1]} 20. Nxc5 {[%clk 0:00:47.1]} 20... bxc5 {[%clk
0:01:19.8]} 21. Bf1 {[%clk 0:00:40.4]} 21... Bxf1 {[%clk 0:01:18]} 22. Rxf1
{[%clk 0:00:41.3]} 22... h6 {[%clk 0:01:14.2]} 23. Kg2 {[%clk 0:00:34.6]} 23...
Qb7 {[%clk 0:01:12.4]} 24. f3 {[%clk 0:00:34]} 24... Rd4 {[%clk 0:01:12.4]} 25.
Rc1 {[%clk 0:00:22.3]} 25... c4 {[%clk 0:01:02.4]} 26. Rf2 {[%clk 0:00:22.1]}
26... Rcd8 {[%clk 0:00:55.8]} 27. Rcc2 {[%clk 0:00:18.5]} 27... Qb6 {[%clk
0:00:53.2]} 28. Qe3 {[%clk 0:00:16.5]} 28... Qa6 {[%clk 0:00:51]} 29. a3 {[%clk
0:00:08.7]} 29... e5 {[%clk 0:00:51]} 30. Qe2 {[%clk 0:00:07.8]} 30... Rd3
{[%clk 0:00:50.1]} 31. h4 {[%clk 0:00:07.2]} 31... R8d4 {[%clk 0:00:45.1]} 32.
Qf1 {[%clk 0:00:05.6]} 32... Qb5 {[%clk 0:00:37.2]} 33. Qe2 {[%clk 0:00:05.6]}
33... a5 {[%clk 0:00:34.6]} 34. Qf1 {[%clk 0:00:05.1]} 34... Rd1 {[%clk
0:00:32.7]} 35. Qe2 {[%clk 0:00:05.2]} 35... R4d3 {[%clk 0:00:33.2]} 36. Kh3
{[%clk 0:00:04.2]} 36... Qd7+ {[%clk 0:00:31.8]} 37. Kg2 {[%clk 0:00:04.3]}
37... Qd4 {[%clk 0:00:31.7]} 38. h5 {[%clk 0:00:03.9]} 38... Kh7 {[%clk
0:00:28.2]} 39. Rc3 {[%clk 0:00:02.8]} 39... R3d2 {[%clk 0:00:18]} 40. Qe3
{[%clk 0:00:03.1]} 40... Rxf2+ {[%clk 0:00:17.1]} 41. Kxf2 {[%clk 0:00:03.4]}
41... Rd2+ {[%clk 0:00:17.2]} 42. Ke1 {[%clk 0:00:03.6]} 42... Qxe3+ {[%clk
0:00:16.5]} 43. Rxe3 {[%clk 0:00:04.5]} 43... Rxb2 {[%clk 0:00:16.7]} 44. Rc3
{[%clk 0:00:05.1]} 44... Rb3 {[%clk 0:00:17.3]} 45. Kd2 {[%clk 0:00:05.5]} 45...
a4 {[%clk 0:00:16.3]} 46. g4 {[%clk 0:00:04.6]} 46... f6 {[%clk 0:00:16.2]} 47.
Rxc4 {[%clk 0:00:03.9]} 47... Rxa3 {[%clk 0:00:16.7]} 48. Ke2 {[%clk 0:00:04.4]}
48... Kg8 {[%clk 0:00:16.9]} 49. Rc7 {[%clk 0:00:04.3]} 49... Ra1 {[%clk
0:00:15.9]} 50. Ra7 {[%clk 0:00:03.9]} 50... a3 {[%clk 0:00:16.2]} 51. Kf2
{[%clk 0:00:04.4]} 51... Kf8 {[%clk 0:00:16.5]} 52. Kg2 {[%clk 0:00:04.5]} 52...
Ra2+ {[%clk 0:00:13.2]} 53. Kg3 {[%clk 0:00:04.3]} 53... Kg8 {[%clk 0:00:12.1]}
54. Kh3 {[%clk 0:00:02.9]} 54... Ra1 {[%clk 0:00:12.4]} 55. Kg3 {[%clk
0:00:03.3]} 55... Kf8 {[%clk 0:00:12.8]} 56. Kg2 {[%clk 0:00:03.6]} 56... Ke8
{[%clk 0:00:13.3]} 57. Rxg7 {[%clk 0:00:03.2]} 57... a2 {[%clk 0:00:13.7]} 58.
Ra7 {[%clk 0:00:03.7]} 58... Kd8 {[%clk 0:00:14.1]} 59. Kh2 {[%clk 0:00:02.5]}
59... Kc8 {[%clk 0:00:14.3]} 60. Kg2 {[%clk 0:00:02.9]} 60... Kb8 {[%clk
0:00:14.7]} 61. Ra3 {[%clk 0:00:03.4]} 61... Kb7 {[%clk 0:00:15.2]} 62. Ra4
{[%clk 0:00:03.6]} 62... Kb6 {[%clk 0:00:15.6]} 63. Ra8 {[%clk 0:00:03.9]} 63...
Kb5 {[%clk 0:00:16.1]} 64. Ra7 {[%clk 0:00:03.9]} 64... Kb4 {[%clk 0:00:16.4]}
65. Ra8 {[%clk 0:00:03.5]} 65... Kb3 {[%clk 0:00:16.9]} 66. Rb8+ {[%clk
0:00:04]} 66... Kc3 {[%clk 0:00:17.3]} 67. Ra8 {[%clk 0:00:04.2]} 67... Kd4
{[%clk 0:00:17.2]} 68. Ra7 {[%clk 0:00:03.6]} 68... Ke3 {[%clk 0:00:17.5]} 69.
Ra3+ {[%clk 0:00:04]} 69... Ke2 {[%clk 0:00:17.2]} 70. Ra8 {[%clk 0:00:03.9]}
70... Kd2 {[%clk 0:00:16.5]} 71. Ra7 {[%clk 0:00:04.4]} 71... Kc3 {[%clk
0:00:16.2]} 72. Ra8 {[%clk 0:00:05]} 72... Kd3 {[%clk 0:00:15]} 73. Ra7 {[%clk
0:00:04.7]} 73... Ke3 {[%clk 0:00:15]} 74. Ra3+ {[%clk 0:00:04.6]} 74... Ke2
{[%clk 0:00:14.8]} 75. Ra8 {[%clk 0:00:05.2]} 75... Ke1 {[%clk 0:00:14]} 76. Ra7
{[%clk 0:00:05.7]} 76... Rd1 {[%clk 0:00:13.6]} 77. Rxa2 {[%clk 0:00:05.5]}
77... Rd2+ {[%clk 0:00:13.9]} 78. Rxd2 {[%clk 0:00:06.1]} 78... Kxd2 {[%clk
0:00:14.4]} 79. Kf2 {[%clk 0:00:06.5]} 79... Kd3 {[%clk 0:00:14.7]} 80. f4
{[%clk 0:00:05.7]} 80... Kxe4 {[%clk 0:00:13.5]} 81. g5 {[%clk 0:00:05.9]} 81...
fxg5 {[%clk 0:00:09.7]} 82. fxg5 {[%clk 0:00:06]} 82... Kf5 {[%clk 0:00:09.2]}
83. gxh6 {[%clk 0:00:06.3]} 83... Kf6 {[%clk 0:00:09.3]} 84. Kf3 {[%clk
0:00:06.5]} 84... Kf7 {[%clk 0:00:09.8]} 85. Ke4 {[%clk 0:00:07.1]} 85... Kg8
{[%clk 0:00:10.3]} 86. Kxe5 {[%clk 0:00:07.7]} 86... Kh7 {[%clk 0:00:10.5]} 87.
Kf5 {[%clk 0:00:08.6]} 87... Kxh6 {[%clk 0:00:11.1]} 88. Kg4 {[%clk 0:00:09.5]}
88... Kh7 {[%clk 0:00:11.7]} 89. Kg5 {[%clk 0:00:10.1]} 89... Kh8 {[%clk
0:00:12.3]} 90. h6 {[%clk 0:00:11]} 90... Kh7 {[%clk 0:00:12.7]} 91. Kh5 {[%clk
0:00:11.2]} 91... Kh8 {[%clk 0:00:13.1]} 92. Kg6 {[%clk 0:00:12.1]} 92... Kg8
{[%clk 0:00:13.6]} 93. h7+ {[%clk 0:00:13]} 93... Kh8 {[%clk 0:00:14.2]} 94. Kh6
{[%clk 0:00:13.9]} 1/2-1/2